bitfinex/quotes_ETHUSD_20250403
["timestamp","ask_amount","ask_price","bid_price","bid_amount"]
[1743675661096,0.17065707,1806.5,1806.4,6.33477]
[1743675661274,5.20955441,1806.5,1806.4,5.53587]
[1743675661876,5.20955441,1806.5,1806.3,5.54099]
[1743675662396,5.20955441,1806.5,1806.3,5.54108]
[1743675662567,0.17065707,1806.5,1806.4,5.53587]
[1743675663973,0.77382318,1806.6,1806.5,6.28796]
[1743675664622,0.8898488,1806.6,1806.5,6.28796]
[1743675664977,0.8898488,1806.6,1806.4,5.53587]
[1743675665174,5.81272052,1806.6,1806.3,0.005]
[1743675665408,0.11602562,1806.5,1806.3,5.54105]
[1743675665608,0.11602562,1806.5,1806.4,5.53587]
[1743675666337,5.03889734,1806.6,1806.5,5.53556]
[1743675666654,5.03889734,1807.1,1806.9,5.5342]
[1743675666814,5.03889734,1807.4,1807.2,5.53329]
[1743675667143,5.03889734,1807.4,1807.3,5.53311]
[1743675667346,5.03889734,1807.6,1807.4,5.53277]
[1743675667842,5.03889734,1807.6,1807.4,5.53267]
[1743675668044,5.03889734,1807.6,1807.3,5.53302]
[1743675668411,5.03889734,1807.6,1807.3,5.53295]
[1743675668610,5.03889734,1807.6,1807.3,11.06586]
[1743675668822,5.03889734,1807.9,1807.4,5.5328]
[1743675669113,5.03889734,1807.9,1807.7,5.53182]
[1743675669312,5.03889734,1807.9,1807.8,5.53158]
[1743675669833,5.03889734,1807.9,1807.7,5.53188]
[1743675670011,5.03889734,1807.9,1807.5,5.53223]
[1743675670211,11.62725007,1807.9,1807.5,5.53223]
[1743675670427,11.62725007,1807.9,1807.4,5.53279]
[1743675670630,6.09590007,1807.9,1807.6,5.53207]
[1743675670831,5.03889734,1807.9,1807.6,5.53206]
[1743675671329,10.57016734,1807.9,1807.5,5.5325]
[1743675671534,5.03889734,1807.9,1807.4,5.53262]
[1743675671746,0.11545612,1807.8,1807.5,5.53239]
[1743675671948,8.64703612,1807.8,1807.3,5.5331]
[1743675672151,6.39659361,1807.7,1807.3,5.5331]
[1743675672354,6.51194453,1807.7,1807.3,5.5331]
[1743675672651,0.98005453,1807.7,1807.3,5.53299]
[1743675672854,0.98005453,1807.7,1807.4,5.5328]
[1743675673062,6.51195453,1807.7,1807.3,5.53299]
[1743675673426,6.51195453,1807.7,1806.3,0.005]
[1743675673427,5.03889734,1807.3,1806.3,0.005]
[1743675673633,3.65119545,1807.6,1806.5,5.53529]
[1743675673634,3.0,1807.0,1806.5,5.53529]
[1743675673833,3.0,1807.0,1806.4,5.53586]
[1743675673834,10.57336734,1806.9,1806.4,5.53586]
[1743675674048,17.57513335,1806.9,1806.4,5.5357]
[1743675674244,5.53479,1806.8,1806.4,5.53585]
[1743675674444,17.46527407,1806.9,1806.4,5.53585]
[1743675674649,0.10987928,1806.7,1806.4,11.07156]
[1743675674827,17.46524407,1806.9,1806.4,11.07156]
[1743675675027,0.10987928,1806.6,1806.4,5.53571]
[1743675675222,5.53475,1806.8,1806.4,5.53571]
[1743675675458,0.10987928,1806.5,1806.4,5.53571]
[1743675675668,5.53475,1806.8,1806.4,5.53571]
[1743675675958,0.10987928,1806.5,1806.4,5.53571]
[1743675676154,5.53475,1806.8,1806.3,5.54113]
[1743675676155,5.53507,1806.7,1806.3,5.54113]
[1743675676354,0.10987928,1806.5,1806.3,5.54113]
[1743675676529,5.53527,1806.6,1806.3,0.005]
[1743675676728,0.10987928,1806.4,1806.3,0.005]
[1743675676946,7.435552,1806.7,1806.3,0.005]
[1743675677146,0.10777373,1806.4,1806.3,5.54107]
[1743675677329,7.435552,1806.7,1806.3,5.54107]
[1743675677531,0.10751047,1806.4,1806.3,5.54107]
[1743675677754,12.970702,1806.7,1806.3,5.54107]
[1743675677960,5.64338047,1806.4,1806.3,0.005]
[1743675678136,8.53587,1806.4,1806.3,0.005]
[1743675678660,5.03889734,1806.4,1806.3,0.005]
[1743675679029,10.57476734,1806.4,1806.3,0.005]
[1743675679356,6.64995207,1806.4,1806.3,0.005]
[1743675679533,12.18582207,1806.4,1806.3,0.005]
[1743675680339,6.64995207,1806.4,1806.3,0.005]
[1743675680545,5.03889734,1806.4,1806.3,0.005]
[1743675680859,10.57476734,1806.4,1806.3,0.005]
[1743675681066,5.03889734,1806.4,1806.3,0.005]
[1743675681472,5.03889734,1806.4,1806.3,5.54117]
[1743675682537,5.03889734,1806.4,1806.3,0.005]
[1743675684066,5.03889734,1806.4,1806.3,5.54117]
[1743675684269,5.746,1806.7,1806.3,5.54117]
[1743675684438,5.03889734,1806.8,1806.6,5.53525]
[1743675685065,10.57369734,1806.8,1806.4,5.53584]
[1743675685265,5.53587,1806.4,1806.3,0.005]
[1743675685473,5.753,1806.4,1806.3,0.005]
[1743675685659,6.3283,1806.4,1806.3,0.005]
[1743675685843,5.753,1806.4,1806.3,5.54117]
[1743675686042,8.85029734,1806.7,1806.5,5.53545]
[1743675686269,5.03889734,1806.7,1806.6,5.53525]
[1743675686475,5.03889734,1806.7,1806.5,5.53543]
[1743675687763,5.53566,1806.5,1806.3,0.005]
[1743675687963,6.089226,1806.5,1806.3,0.005]
[1743675688274,5.53587,1806.4,1806.3,0.005]
[1743675688461,11.29787,1806.4,1806.3,0.005]
[1743675689239,19.33676734,1806.4,1806.3,0.005]
[1743675689872,13.80089734,1806.4,1806.3,0.005]
[1743675690044,18.87935967,1806.4,1806.3,0.005]
[1743675691766,13.34348967,1806.4,1806.3,0.005]
[1743675691966,5.03889734,1806.4,1806.3,5.54117]
[1743675692278,5.03889734,1806.4,1806.3,0.005]
[1743675692476,10.57476734,1806.4,1806.3,0.005]
[1743675696486,5.03889734,1806.4,1806.3,0.005]
[1743675696701,5.03889734,1806.4,1806.3,5.54117]
[1743675698658,5.03889734,1806.8,1806.6,11.07018]
[1743675698854,6.33148075,1806.8,1806.5,5.53548]
[1743675699079,11.86623075,1806.8,1806.4,11.07163]
[1743675699288,5.53553,1806.6,1806.3,0.005]
[1743675699488,16.31059734,1806.5,1806.3,0.005]
[1743675699693,1.63105973,1806.4,1806.3,0.005]
[1743675700262,10.77489734,1806.5,1806.3,0.005]
[1743675700459,10.77489734,1806.5,1806.3,5.54117]
[1743675701756,10.77489734,1806.5,1806.4,5.53587]
[1743675701959,5.03889734,1806.5,1806.4,5.53587]
[1743675704696,10.57457734,1806.5,1806.3,0.005]
[1743675704888,6.09635507,1806.5,1806.3,5.54112]
[1743675705066,5.03889734,1806.5,1806.4,5.53587]
[1743675705267,5.03889734,1806.5,1806.4,6.34957]
[1743675705489,10.57302734,1807.0,1806.6,5.53496]
[1743675705678,5.53478,1806.8,1806.4,6.34946]
[1743675705868,5.53478,1806.8,1806.3,5.54115]
[1743675705869,5.53542,1806.6,1806.3,0.005]
[1743675706063,11.12808934,1806.5,1806.3,0.005]
[1743675706463,5.53587,1806.4,1806.3,0.005]
[1743675707288,11.12808934,1806.5,1806.3,0.005]
[1743675707569,11.12802934,1806.5,1806.3,0.005]
[1743675707790,16.66385934,1806.5,1806.3,0.005]
[1743675707987,7.20225593,1806.4,1806.3,0.005]
[1743675708192,13.75795593,1806.4,1806.3,0.005]
[1743675709434,5.53648,1806.2,1806.0,0.025]
[1743675709576,5.53832,1805.6,1805.2,5.53941]
[1743675709773,5.03889734,1805.5,1805.2,5.53938]
[1743675709974,5.03889734,1805.5,1805.1,0.05]
[1743675709975,5.85259734,1805.5,1805.1,0.05]
[1743675710277,3.0,1805.3,1805.1,0.05]
[1743675710676,16.38692734,1805.4,1805.1,0.05]
[1743675710877,5.53925,1805.3,1805.1,0.05]
[1743675711293,5.03889734,1805.2,1805.1,0.05]
[1743675711486,5.03889734,1805.2,1805.1,5.58985]
[1743675711703,3.8137,1805.5,1805.3,5.53905]
[1743675711704,5.03889734,1805.5,1805.3,5.53905]
[1743675712874,5.03889734,1805.5,1805.3,5.53912]
[1743675713279,5.03889734,1805.5,1805.3,5.53906]
[1743675713513,5.03889734,1805.5,1805.4,5.53893]
[1743675713679,5.03889734,1805.5,1805.3,5.53906]
[1743675713880,5.54278707,1805.5,1805.2,5.53953]
[1743675714295,5.54278707,1805.5,1805.2,5.53935]
[1743675714628,5.03889734,1805.5,1805.3,5.53905]
[1743675714998,5.53924,1805.3,1805.1,0.05]
[1743675715213,5.53924,1805.3,1805.0,10.0]
[1743675715214,14.07874734,1805.1,1805.0,10.0]
[1743675715415,5.54108,1804.7,1804.6,0.005]
[1743675715694,23.89027363,1804.7,1804.6,0.005]
[1743675716026,20.27797734,1804.7,1804.6,0.005]
[1743675716331,20.27797734,1804.7,1803.0,49.09068314]
[1743675716332,5.54486,1803.5,1803.0,49.09068314]
[1743675716535,11.32389734,1803.4,1803.0,48.22858314]
[1743675716824,4.98889734,1803.3,1803.2,5.54569]
[1743675717232,3.2876,1803.8,1803.4,5.54505]
[1743675717233,4.98889734,1803.5,1803.4,5.54505]
[1743675717415,4.98889734,1803.5,1803.3,5.5453]
[1743675717618,4.98889734,1803.5,1803.2,5.54548]
[1743675717818,4.98889734,1803.5,1803.0,48.22858314]
[1743675717819,4.98889734,1803.5,1803.1,5.54596]
[1743675718129,4.98889734,1803.5,1803.2,5.54554]
[1743675718308,4.98889734,1803.5,1803.3,5.54523]
[1743675718500,4.98889734,1803.5,1803.4,5.54508]
[1743675718700,4.98889734,1803.5,1803.3,5.54523]
[1743675719006,4.98889734,1803.5,1803.4,5.54508]
[1743675719415,4.98889734,1803.5,1803.3,11.09048]
[1743675719723,4.98889734,1803.5,1803.4,5.54508]
[1743675720114,4.98889734,1803.5,1803.1,5.54578]
[1743675720311,4.98889734,1803.5,1803.2,5.54555]
[1743675720729,4.98889734,1803.5,1803.4,5.54508]
[1743675721301,4.98889734,1803.5,1803.1,5.54576]
[1743675721633,11.9373,1803.7,1803.0,48.22858314]
[1743675721634,11.32128734,1803.4,1803.0,48.22858314]
[1743675721930,11.32128734,1803.4,1803.0,53.77487314]
[1743675721931,4.98889734,1803.3,1803.0,53.77487314]
[1743675722094,4.98889734,1803.3,1803.0,48.22858314]
[1743675722297,11.35589734,1803.2,1803.0,48.22858314]
[1743675722527,4.98889734,1803.1,1803.0,48.22858314]
[1743675722896,4.98889734,1803.4,1803.3,5.54538]
[1743675723834,4.98889734,1803.8,1803.4,5.54503]
[1743675724034,4.98889734,1803.8,1803.7,5.54415]
[1743675725143,4.98889734,1804.3,1804.2,5.54262]
[1743675725302,4.98889734,1804.3,1804.1,5.54269]
[1743675725498,5.54275,1804.2,1803.6,5.5443]
[1743675725705,3.0,1804.0,1803.5,5.54465]
[1743675725910,12.17129734,1804.1,1803.6,5.54427]
[1743675726199,12.17129734,1804.1,1803.7,5.54395]
[1743675726710,12.17129734,1804.1,1803.8,5.54379]
[1743675727018,5.79929734,1804.1,1803.9,5.54352]
[1743675727218,4.98889734,1804.1,1803.9,5.5434]
[1743675728139,4.98889734,1804.1,1803.6,5.54428]
[1743675728429,4.98889734,1804.1,1803.7,5.54409]
[1743675728633,4.98889734,1804.1,1803.8,5.5438]
[1743675728837,4.98889734,1804.1,1803.9,5.54347]
[1743675729350,4.98889734,1804.1,1803.9,11.08687]
[1743675729516,4.98889734,1804.1,1804.0,5.54323]
[1743675730241,4.98889734,1804.4,1804.2,5.54236]
[1743675730560,4.98889734,1804.4,1804.3,5.54231]
[1743675731038,4.98889734,1804.4,1804.1,5.54289]
[1743675731336,4.98889734,1804.4,1804.2,5.5426]
[1743675731543,4.98889734,1804.4,1804.2,5.54249]
[1743675731850,4.98889734,1804.4,1804.0,5.5431]
[1743675732052,4.98889734,1804.4,1804.1,5.54292]
[1743675732227,4.98889734,1804.4,1804.0,5.54318]
[1743675732428,4.98889734,1804.4,1804.1,5.54275]
[1743675732733,4.98889734,1804.4,1804.0,11.08629]
[1743675733069,4.98889734,1804.4,1804.1,5.54278]
[1743675733251,4.98889734,1804.4,1804.1,5.54273]
[1743675733426,4.98889734,1804.4,1804.2,5.5426]
[1743675733621,4.98889734,1804.4,1804.3,5.54231]
[1743675734336,4.98889734,1804.4,1804.2,5.5426]
[1743675734512,4.98889734,1804.4,1804.3,5.54231]
[1743675735140,4.98889734,1804.4,1804.0,5.54322]
[1743675735339,4.98889734,1804.4,1804.2,5.54262]
[1743675735711,4.98889734,1804.4,1804.3,5.54231]
[1743675736562,4.98889734,1804.4,1804.2,5.54246]
[1743675737671,4.98889734,1804.4,1804.3,5.54231]
[1743675737873,4.98889734,1804.4,1804.2,11.08495]
[1743675738180,4.98889734,1804.4,1803.6,51.76535]
[1743675738181,4.98889734,1804.8,1804.0,5.54296]
[1743675738347,4.98889734,1804.8,1804.3,5.54206]
[1743675738545,10.52980734,1804.8,1804.3,5.54206]
[1743675738857,10.52980734,1804.8,1804.3,11.08421]
[1743675739066,10.52980734,1804.8,1804.4,5.542]
[1743675739266,4.98889734,1804.8,1804.1,0.7583]
[1743675739477,4.98889734,1804.8,1804.5,5.54146]
[1743675739632,4.98889734,1804.8,1804.5,11.08292]
[1743675739830,4.98889734,1804.8,1804.6,5.5413]
[1743675740088,1.31208993,1804.7,1804.6,5.54129]
[1743675740734,1.31208993,1804.7,1804.5,5.54157]
[1743675741039,9.85327993,1804.7,1804.2,5.54253]
[1743675741367,9.85327993,1804.7,1804.1,0.7583]
[1743675741368,5.54172,1804.5,1804.1,5.54292]
[1743675741563,10.53031734,1804.6,1804.2,5.5425]
[1743675741861,10.53031734,1804.6,1804.2,5.54257]
[1743675742243,4.98889734,1804.6,1803.8,5.54383]
[1743675742441,4.98889734,1804.6,1804.2,11.08472]
[1743675742669,1.31245691,1804.5,1804.2,5.54233]
[1743675744067,1.31245691,1804.4,1804.2,5.54233]
[1743675744360,4.98889734,1804.3,1803.8,5.54381]
[1743675744663,4.98889734,1804.3,1803.4,11.08998]
[1743675744664,6.35074,1803.9,1803.4,11.08998]
[1743675744845,4.98889734,1803.8,1803.6,5.54422]
[1743675745239,4.98889734,1803.8,1803.7,5.54415]
[1743675745635,4.98889734,1803.8,1803.6,5.54422]
[1743675745843,4.98889734,1803.8,1803.5,5.54472]
[1743675747134,4.98889734,1803.8,1803.5,5.54459]
[1743675747337,4.98889734,1803.8,1803.6,5.54443]
[1743675747552,4.98889734,1803.8,1803.7,6.32135]
[1743675747752,4.98889734,1803.8,1803.7,8.062362]
[1743675748141,4.98889734,1803.8,1803.7,6.32135]
[1743675748554,4.98889734,1804.3,1804.0,5.54303]
[1743675748743,4.98889734,1804.3,1803.8,5.54385]
[1743675748945,4.98889734,1804.3,1804.1,11.0856]
[1743675749161,4.98889734,1804.3,1804.2,5.54262]
[1743675750269,4.98889734,1804.6,1804.5,5.5417]
[1743675751671,4.98889734,1804.6,1804.4,5.54186]
[1743675751876,4.98889734,1804.6,1803.9,5.54337]
[1743675751877,4.98889734,1804.6,1803.9,0.7999]
[1743675752080,0.7937,1804.5,1803.9,0.7999]
[1743675752248,4.98889734,1804.6,1804.3,5.5422]
[1743675752445,4.98889734,1804.6,1804.2,5.54262]
[1743675752650,4.98889734,1804.6,1804.4,5.54185]
[1743675752854,4.98889734,1804.6,1804.3,5.54216]
[1743675753059,4.98889734,1804.6,1804.3,11.08431]
[1743675753295,0.7998,1804.5,1804.1,5.54279]
[1743675753447,0.7998,1804.5,1804.2,5.54241]
[1743675753647,4.98889734,1804.6,1804.3,5.54205]
[1743675753848,10.53033734,1804.6,1804.2,5.54257]
[1743675754774,0.50777474,1804.5,1804.1,11.08569]
[1743675755279,0.50777474,1804.5,1804.2,5.54261]
[1743675755486,6.212,1804.4,1803.9,0.7999]
[1743675755773,4.98889734,1804.3,1803.9,5.54344]
[1743675755983,5.49667208,1804.3,1803.9,5.54344]
[1743675756280,6.37591,1804.2,1803.7,5.5441]
[1743675756482,5.54319,1804.1,1803.6,5.54443]
[1743675756783,6.213,1804.0,1803.6,5.54433]
[1743675757078,4.98889734,1803.9,1803.6,5.54433]
[1743675757274,5.49667208,1803.9,1803.6,5.54433]
[1743675757675,5.49667208,1803.9,1803.5,5.54473]
[1743675757984,5.49667208,1803.9,1803.5,5.5446]
[1743675758280,11.04040208,1803.9,1803.4,5.54496]
[1743675758448,5.54463,1803.6,1803.0,53.77465314]
[1743675758649,4.98889734,1803.5,1803.0,48.22858314]
[1743675758855,6.30526,1803.4,1803.0,48.22858314]
[1743675759145,10.53431734,1803.3,1803.0,48.22858314]
[1743675759351,16.73378734,1803.2,1803.0,48.22858314]
[1743675759580,4.98889734,1803.1,1803.0,48.22858314]
[1743675759759,5.74889734,1803.4,1803.0,48.22858314]
[1743675760081,0.50777474,1803.2,1803.1,5.54581]
[1743675761084,4.98889734,1803.7,1803.6,5.54446]
[1743675761269,5.76829734,1804.0,1803.3,5.54538]
[1743675761474,5.76829734,1804.0,1803.5,5.54471]
[1743675761657,5.76829734,1804.0,1803.8,5.54363]
[1743675762285,5.76829734,1804.0,1803.7,5.54414]
[1743675763091,5.76829734,1804.0,1803.6,5.54427]
[1743675763585,5.76829734,1804.0,1803.7,5.54402]
[1743675764282,5.76829734,1804.0,1803.5,5.54474]
[1743675764483,11.41260481,1804.0,1803.5,5.54474]
[1743675764683,5.86914481,1804.0,1803.6,5.54436]
[1743675764985,5.86914481,1804.0,1803.6,11.08865]
[1743675765182,12.04714481,1804.0,1803.5,5.54468]
[1743675765366,12.04714481,1804.0,1803.6,5.54442]
[1743675765567,12.04714481,1804.0,1803.7,5.54412]
[1743675766063,5.86914481,1804.0,1803.7,5.54412]
[1743675766264,5.86914481,1804.0,1803.7,5.54399]
[1743675766465,5.86914481,1804.0,1803.7,11.08804]
[1743675766684,5.86914481,1804.0,1803.7,5.54399]
[1743675767095,5.08974481,1804.0,1803.9,5.54354]
[1743675767274,5.08974481,1804.0,1803.8,11.08766]
[1743675767472,5.08974481,1804.0,1803.9,5.54354]
[1743675767666,4.98889734,1804.0,1803.9,5.54354]
[1743675767868,4.98889734,1804.5,1804.2,5.54248]
[1743675768066,4.98889734,1804.5,1804.3,5.54214]
[1743675768396,4.98889734,1804.5,1804.4,5.542]
[1743675768896,4.98889734,1804.8,1804.6,5.54121]
[1743675769098,4.98889734,1804.8,1804.6,11.08244]
[1743675769396,4.98889734,1804.8,1804.7,5.54108]
[1743675770380,0.05,1804.9,1804.7,5.54108]
[1743675770676,0.05,1804.9,1804.8,5.54078]
[1743675772665,0.05,1804.9,1804.8,6.70436986]
[1743675772999,0.05,1804.9,1804.8,5.54078]
[1743675774396,0.05,1804.9,1804.7,5.54108]
[1743675774603,0.05,1804.9,1804.8,5.54078]
[1743675775566,0.05,1804.9,1804.8,6.31838]
[1743675776375,0.05,1804.9,1804.7,5.5409]
[1743675776763,0.05,1804.9,1804.5,11.86077]
[1743675777392,4.98889734,1804.8,1804.4,5.54183]
[1743675777703,4.98889734,1804.8,1804.5,5.54164]
[1743675777901,10.52977734,1804.8,1804.4,5.54183]
[1743675778571,4.98889734,1804.8,1804.2,6.3204]
[1743675778772,10.53024734,1804.7,1804.3,5.5422]
[1743675778999,4.98889734,1804.7,1804.3,5.54215]
[1743675779703,4.98889734,1804.7,1804.3,11.08431]
[1743675780001,4.98889734,1804.7,1804.3,5.54215]
[1743675780300,6.36289,1804.5,1804.0,5.54323]
[1743675780516,0.8211,1804.5,1803.9,0.7611]
[1743675780669,0.8211,1804.5,1804.1,5.5427]
[1743675780866,0.8211,1804.5,1803.9,6.30454]
[1743675781068,5.08993872,1804.6,1804.3,5.54203]
[1743675781484,5.08993872,1804.6,1804.4,5.54186]
[1743675782204,5.08993872,1804.6,1804.5,5.5417]
[1743675782404,11.22389734,1804.9,1804.6,5.54128]
[1743675782570,11.22389734,1804.9,1804.6,11.08253]
[1743675782771,11.22389734,1804.9,1804.5,1.108356]
[1743675782772,5.03889734,1804.9,1804.7,5.54097]
[1743675782978,5.03889734,1804.9,1804.8,5.54078]
[1743675783211,5.03889734,1804.9,1804.6,5.54128]
[1743675783377,5.03889734,1804.9,1804.7,11.082]
[1743675783707,5.03889734,1804.9,1804.8,5.54078]
[1743675784087,5.03889734,1804.9,1804.7,0.91654185]
[1743675784289,5.03889734,1804.9,1804.7,5.54105]
[1743675784486,5.03889734,1804.9,1804.8,5.54078]
[1743675784690,5.03889734,1804.9,1804.6,5.54124]
[1743675784909,5.03889734,1804.9,1804.7,11.08184]
[1743675785078,5.03889734,1804.9,1804.8,5.54078]
[1743675786109,0.05,1804.9,1804.8,6.35819545]
[1743675788107,0.05,1804.9,1804.8,6.41359042]
[1743675788312,0.05,1804.9,1804.8,6.35819545]
[1743675789507,0.05,1804.9,1804.7,6.29092]
[1743675789712,0.05,1804.9,1804.8,5.54078]
[1743675791011,0.05,1804.9,1804.8,5.59617946]
[1743675791307,0.05,1804.9,1804.8,5.54078]
[1743675794111,1e-05,1804.9,1804.8,9.16020024]
[1743675794316,1e-05,1804.9,1804.8,10.76070219]
[1743675794518,1e-05,1804.9,1804.8,10.70531226]
[1743675794815,1e-05,1804.9,1804.8,7.08589202]
[1743675795185,1e-05,1804.9,1804.8,7.14129154]
[1743675796181,1e-05,1804.9,1804.8,7.08589202]
[1743675796484,1e-05,1804.9,1804.8,7.14129084]
[1743675796714,1e-05,1804.9,1804.8,7.08589202]
[1743675796910,1e-05,1804.9,1804.8,7.14129057]
[1743675798492,1e-05,1804.9,1804.8,7.08589202]
[1743675800233,1e-05,1804.9,1804.8,7.14128776]
[1743675800533,1e-05,1804.9,1804.8,7.08589202]
[1743675801937,1e-05,1804.9,1804.7,5.54092]
[1743675802105,1e-05,1804.9,1804.6,11.08262]
[1743675802305,1e-05,1804.9,1804.6,11.08255]
[1743675803497,1e-05,1804.9,1804.7,5.54108]
[1743675803698,1e-05,1804.9,1804.8,5.54078]
[1743675803936,1e-05,1804.9,1804.8,7.203061]
[1743675804515,1e-05,1804.9,1804.8,7.25846084]
[1743675804718,1e-05,1804.9,1804.8,7.203061]
[1743675806944,1e-05,1804.9,1804.8,7.25845872]
[1743675807113,1e-05,1804.9,1804.8,7.990361]
[1743675807304,0.7736,1805.8,1805.7,5.53801]
[1743675807531,0.7736,1805.8,1805.6,5.53819]
[1743675807734,0.7736,1805.8,1805.6,11.07638]
[1743675808233,1.28179491,1805.8,1805.6,11.07637]
[1743675808430,1.28179491,1805.8,1805.5,5.53857]
[1743675808735,1.28179491,1805.8,1805.5,11.07714]
[1743675808932,1.28179491,1805.8,1805.6,5.5382]
[1743675809440,5.03889734,1805.9,1805.7,5.53801]
[1743675809625,0.05,1805.9,1805.8,5.59308283]
[1743675809831,0.05,1805.9,1805.8,6.42378283]
[1743675810030,0.8228,1806.4,1805.8,6.42378283]
[1743675810031,0.8228,1806.4,1806.3,5.53617]
[1743675810333,0.8228,1806.4,1806.1,5.53669]
[1743675810534,0.8228,1806.4,1806.1,11.0733]
[1743675810844,0.50831263,1806.4,1806.1,6.64411]
[1743675811001,5.53628,1806.3,1805.8,5.5376]
[1743675811205,0.7644,1806.2,1805.8,5.53753]
[1743675811425,11.00989734,1806.3,1806.0,11.07388]
[1743675811625,4.98889734,1806.3,1806.2,5.53648]
[1743675811826,1.28271263,1806.4,1806.3,5.53617]
[1743675812030,0.50831263,1806.4,1806.3,6.69877625]
[1743675812228,2.63e-06,1806.4,1806.3,6.69877625]
[1743675812537,0.55,1806.8,1806.6,5.53514]
[1743675812740,0.55,1806.8,1806.5,5.53551]
[1743675812940,0.55,1806.8,1806.2,5.53647]
[1743675812941,0.8319,1806.7,1806.2,5.53647]
[1743675813107,4.98889734,1806.6,1806.2,5.53647]
[1743675813305,4.98889734,1806.6,1806.1,5.53661]
[1743675813533,10.52430734,1806.6,1806.2,0.553661]
[1743675813801,10.52416734,1806.6,1806.1,5.53664]
[1743675814006,4.98889734,1806.6,1806.2,5.53631]
[1743675814431,5.53571,1806.5,1805.8,0.8042]
[1743675814632,0.8305,1806.3,1805.9,5.53739]
[1743675814831,4.98889734,1806.5,1806.0,5.53709]
[1743675815041,4.98889734,1806.5,1806.2,5.53637]
[1743675815229,4.98889734,1806.5,1806.3,5.53606]
[1743675815433,4.98889734,1806.5,1806.3,11.07212]
[1743675815742,4.98889734,1806.5,1806.4,5.53587]
[1743675815943,0.8244,1806.6,1806.4,5.53587]
[1743675816142,11.86518734,1806.8,1806.3,5.53615]
[1743675816547,11.86518734,1806.8,1806.0,0.7516]
[1743675816548,5.53506,1806.7,1806.2,5.53625]
[1743675816711,11.31618734,1806.6,1806.0,5.53705]
[1743675817048,6.025,1806.5,1806.1,11.07327]
[1743675817252,5.53591,1806.4,1805.9,5.5373]
[1743675817419,5.53591,1806.4,1805.9,11.0746]
[1743675817615,5.53591,1806.4,1805.9,5.5373]
[1743675818011,6.30502,1806.2,1805.7,6.29329]
[1743675818211,11.29391734,1806.2,1805.7,11.07587]
[1743675818611,11.29391734,1806.2,1805.6,6.645958]
[1743675818817,5.53693,1806.1,1805.6,6.645858]
[1743675819013,4.98889734,1806.0,1805.6,6.645838]
[1743675819220,5.53779,1805.8,1805.3,5.5391]
[1743675819420,5.53779,1805.8,1805.5,5.53853]
[1743675819421,4.98889734,1805.8,1805.5,5.53853]
[1743675819622,4.98889734,1805.8,1805.7,5.53801]
[1743675820720,4.98889734,1805.8,1805.6,5.53825]
[1743675820946,4.98889734,1805.8,1805.5,5.53862]
[1743675821272,4.98889734,1805.8,1805.7,5.53801]
[1743675821464,11.81109734,1806.1,1805.7,11.07602]
[1743675821744,5.53751,1805.9,1805.4,11.07751]
[1743675821917,5.53728,1806.0,1805.5,5.53862]
[1743675822119,5.53728,1806.0,1805.5,11.13261869]
[1743675822446,11.07464,1806.0,1805.5,5.53862]
[1743675822945,11.81109734,1806.1,1805.6,5.53832]
[1743675822946,17.34790734,1806.1,1805.6,5.53832]
[1743675823116,11.81109734,1806.1,1805.7,5.538]
[1743675824148,17.34803734,1806.1,1805.6,5.53832]
[1743675824353,5.53719,1806.0,1805.6,5.53832]
[1743675824513,17.34803734,1806.1,1805.6,5.53832]
[1743675824514,22.88502734,1806.1,1805.6,5.53832]
[1743675825346,5.53726,1806.0,1805.5,5.53852]
[1743675825548,4.98889734,1806.0,1805.5,1.28182869]
[1743675825745,4.98889734,1806.2,1805.9,5.5371]
[1743675826547,4.98889734,1806.2,1805.9,11.0744]
[1743675827049,4.98889734,1806.2,1806.0,5.53694]
[1743675827216,4.98889734,1806.2,1806.0,11.07394]
[1743675827417,4.98889734,1806.2,1806.0,5.53694]
[1743675827655,4.98889734,1806.2,1805.9,5.53736]
[1743675828253,4.98889734,1806.2,1805.8,5.53757]
[1743675828453,4.98889734,1806.2,1805.8,11.07513]
[1743675828753,10.52540734,1806.2,1805.8,5.53756]
[1743675828948,16.06217734,1806.2,1805.7,5.53786]
[1743675829352,4.98889734,1806.2,1805.7,5.53786]
[1743675829555,4.98889734,1806.2,1806.0,5.537]
[1743675829758,4.98889734,1806.2,1805.9,11.0746]
[1743675829939,4.98889734,1806.2,1805.9,5.53726]
[1743675830448,4.98889734,1806.2,1805.8,5.5376]
[1743675830933,4.98889734,1806.2,1805.8,5.53756]
[1743675831134,6.34525,1806.1,1805.6,5.53823]
[1743675831335,5.53712,1806.0,1805.6,5.53823]
[1743675831659,6.34525,1806.1,1805.6,5.53818]
[1743675831822,3.8083,1806.1,1805.4,5.53891]
[1743675832152,0.814,1805.7,1805.4,11.07767]
[1743675832319,4.98889734,1805.8,1805.5,0.05538464]
[1743675832524,4.98889734,1805.8,1805.7,5.53801]
[1743675832727,4.98889734,1805.8,1805.6,5.53819]
[1743675832920,4.98889734,1805.8,1805.5,5.53853]
[1743675833125,4.98889734,1805.8,1805.6,11.07652]
[1743675833325,4.98889734,1805.8,1805.6,5.53823]
[1743675833525,4.98889734,1805.8,1805.7,5.53801]
[1743675834124,0.10125288,1806.0,1805.9,5.5374]
[1743675834330,4.98889734,1806.1,1805.9,5.5374]
[1743675834560,4.98889734,1806.1,1805.9,5.53727]
[1743675835237,4.98889734,1806.1,1805.9,11.12988787]
[1743675835549,4.98889734,1806.1,1805.9,5.53725]
[1743675835739,4.98889734,1806.1,1805.8,5.53767]
[1743675836052,4.98889734,1806.1,1805.7,5.53797]
[1743675836253,4.98889734,1806.1,1805.7,5.53789]
[1743675836458,4.98889734,1806.1,1805.8,5.53762]
[1743675836641,4.98889734,1806.1,1805.9,5.53726]
[1743675836851,4.98889734,1806.1,1805.8,5.53764]
[1743675837029,4.98889734,1806.1,1805.8,5.53765]
[1743675837229,4.98889734,1806.1,1805.8,11.07527]
[1743675837542,4.98889734,1806.1,1805.9,5.59258859]